bitfinex-derivatives/quotes_ETHF0:USTF0_20250616
["timestamp","ask_amount","ask_price","bid_price","bid_amount"]
[1750113163632,0.00568182,2640.2,2640.0,0.75727]
[1750113163834,0.00568182,2640.2,2640.1,12.60180454]
[1750113164628,5.76290182,2640.2,2640.1,0.0757547]
[1750113164825,5.76290182,2640.2,2639.5,3.2078]
[1750113164826,5.00568182,2640.2,2639.5,3.2078]
[1750113165126,3.21348182,2640.2,2639.7,1.3494]
[1750113165432,3.21348182,2640.2,2640.0,3.20779984]
[1750113165625,3.21348182,2640.2,2640.1,3.20779984]
[1750113165825,3.21348182,2640.2,2640.1,5.26244984]
[1750113165826,0.00568182,2640.2,2640.1,5.26244984]
[1750113166025,0.00568182,2640.2,2640.1,8.47024984]
[1750113166234,0.00568182,2640.2,2640.1,13.06819984]
[1750113166531,0.00568182,2640.2,2640.1,13.82544984]
[1750113166932,0.00568182,2640.2,2640.1,3.96504984]
[1750113167136,0.00568182,2640.2,2640.1,12.52804984]
[1750113167332,0.00568182,2640.2,2639.7,8.563]
[1750113167531,3.2078,2640.1,2639.9,3.20779984]
[1750113167738,3.96507,2640.1,2639.8,9.8604]
[1750113167936,0.75729,2640.0,2639.6,9.32038]
[1750113168143,0.75729,2640.0,2639.7,3.20779984]
[1750113168434,3.2078,2639.8,2639.7,3.20779984]
[1750113168633,3.2078,2639.8,2639.5,0.75741]
[1750113168834,3.2078,2639.8,2639.7,3.20779984]
[1750113169138,3.2078,2639.8,2639.6,13.78038984]
[1750113169336,3.2078,2639.8,2639.6,10.57259]
[1750113169637,3.2078,2639.8,2639.7,3.96516984]
[1750113169827,3.2078,2640.1,2639.9,0.75729]
[1750113170026,3.2078,2640.1,2639.9,0.82466406]
[1750113170434,3.2078,2640.1,2640.0,0.75728]
[1750113170639,0.00568182,2640.2,2640.1,0.75725]
[1750113170834,0.00568182,2640.2,2640.1,3.96504984]
[1750113171533,3.2078,2640.4,2640.3,0.75719]
[1750113171833,3.2078,2641.2,2640.8,0.75703]
[1750113172028,3.2078,2641.2,2641.1,3.96476984]
[1750113172233,3.2078,2641.2,2641.1,11.77379984]
[1750113172432,3.2078,2641.2,2641.1,8.566]
[1750113172634,3.2078,2641.2,2641.1,11.77379984]
[1750113173038,0.00568182,2641.4,2641.1,11.77379984]
[1750113173234,0.00568182,2641.4,2641.3,3.20779984]
[1750113173438,0.76256182,2641.4,2641.3,11.77379984]
[1750113173639,0.76256182,2641.4,2641.3,8.566]
[1750113174529,0.00568182,2641.4,2641.3,9.32291]
[1750113174733,0.76256182,2641.4,2641.3,9.32291]
[1750113174936,0.00568182,2641.4,2641.3,9.32291]
[1750113176230,0.00568182,2641.4,2641.3,0.75691]
[1750113176433,0.00568182,2641.4,2641.3,9.32291]
[1750113177638,0.00568182,2641.4,2641.3,13.20440984]
[1750113178235,0.00568182,2641.4,2641.3,16.41220984]
[1750113178631,3.2078,2641.9,2641.8,0.75677]
[1750113178837,3.2078,2641.9,2641.8,12.53056984]
[1750113179244,3.2078,2641.9,2641.8,3.96456984]
[1750113179439,9.34600904,2641.9,2640.9,0.00568182]
[1750113179635,1.89257,2640.9,2640.0,2.0073]
[1750113179935,0.75725,2640.1,2640.0,5.21509984]
[1750113180136,0.75728,2640.0,2639.9,8.63337406]
[1750113180342,3.96508,2640.0,2639.9,8.63337406]
[1750113180537,1.89304,2640.3,2639.9,11.8411739]
[1750113180538,0.00568182,2640.2,2639.9,11.8411739]
[1750113180743,0.75728,2640.0,2639.9,8.63337406]
[1750113181043,3.96508,2640.0,2639.9,0.06737406]
[1750113181340,3.96508,2640.0,2639.5,1.3587]
[1750113181341,1.8934,2639.8,2638.9,3.2078]
[1750113181539,3.2078,2639.6,2639.2,3.20779984]
[1750113181837,0.75748,2639.4,2639.2,3.20779984]
[1750113182042,0.75745,2639.4,2639.3,1.3649]
[1750113182242,1.89371,2639.3,2638.1,3.2078]
[1750113182437,1.89371,2639.3,2636.1,272.579]
[1750113182438,8.58193814,2638.2,2637.4,3.2078]
[1750113182742,0.00568182,2638.1,2638.0,3.96565984]
[1750113182949,0.00568182,2638.1,2638.0,3.96566]
[1750113183242,3.96528,2639.4,2638.8,0.75762]
[1750113183447,3.2078,2639.4,2638.9,1.3649]
[1750113183838,0.75753,2639.2,2638.6,0.75768]
[1750113184146,3.21348182,2639.2,2638.9,3.20779984]
[1750113184346,0.00568182,2639.2,2639.1,3.96533984]
[1750113184537,3.2078,2639.9,2639.1,6.41559984]
[1750113184840,3.2078,2639.9,2639.4,3.20779984]
[1750113185040,3.2078,2640.2,2639.6,3.96516984]
[1750113185242,1.13876455,2640.1,2639.6,5.22957984]
[1750113185450,1.13876455,2640.0,2639.6,4.47219984]
[1750113185649,0.00568182,2640.1,2639.7,1.2644]
[1750113185845,1.14055384,2640.0,2639.7,1.2644]
[1750113186141,4.34838214,2639.9,2639.1,0.6572]
[1750113186445,1.14058214,2639.8,2639.6,3.20779984]
[1750113186835,1.14058214,2639.8,2639.5,1.2644]
[1750113187038,1.14058214,2639.8,2639.6,3.96517984]
[1750113187247,1.14058214,2639.8,2639.7,1.3597]
[1750113187749,1.14058214,2639.8,2639.7,2.11707]
[1750113188047,1.14058214,2639.8,2639.7,5.32486984]
[1750113188241,3.2078,2639.9,2639.8,0.75734]
[1750113188441,4.35599056,2639.9,2639.8,5.32483984]
[1750113188744,3.2078,2639.9,2639.8,5.32483984]
[1750113189235,3.2078,2639.9,2639.8,4.56749984]
[1750113189438,3.2078,2639.9,2639.8,5.32483984]
[1750113189638,0.76295182,2640.1,2640.0,0.75728]
[1750113189639,0.00568182,2640.1,2640.0,0.75728]
[1750113189839,1.14307691,2640.1,2640.0,3.96507984]
[1750113190037,1.14307691,2640.1,2640.0,3.20779984]
[1750113190237,1.14307691,2640.1,2640.0,3.96507984]
[1750113190948,1.14307691,2640.1,2640.0,12.53407984]
[1750113191145,0.00568182,2640.1,2640.0,12.53407984]
[1750113191346,3.2078,2640.9,2640.2,1.89307]
[1750113191542,1.13459052,2640.8,2640.7,3.96487984]
[1750113191844,1.13459052,2640.8,2640.7,0.75708]
[1750113192041,3.2078,2641.3,2640.8,0.75704]
[1750113192242,1.12710888,2641.2,2641.0,3.96476984]
[1750113192446,1.12700225,2641.1,2641.0,3.20779984]
[1750113192745,3.21348182,2641.3,2641.0,0.75699]
[1750113192948,1.88405433,2641.2,2641.1,3.20779984]
[1750113193148,1.12711433,2641.2,2641.1,3.96476984]
[1750113193349,1.12711433,2641.2,2641.1,3.20779984]
[1750113193944,1.12711433,2641.2,2640.8,0.00568182]
[1750113194147,3.21348182,2641.3,2641.1,3.20779984]
[1750113194349,1.12677707,2641.2,2640.9,8.61]
[1750113194654,0.75698,2641.1,2640.9,9.36702]
[1750113194843,3.21348182,2641.3,2640.8,0.00568182]
[1750113195044,0.75702,2640.9,2640.8,3.21348166]
[1750113195848,3.2078,2641.0,2640.8,3.21348166]
[1750113196156,0.75702,2640.9,2640.8,3.21348166]
[1750113196653,0.75714,2640.5,2640.4,0.6653]
[1750113196853,7.66139551,2641.1,2640.5,3.20779984]
[1750113196854,3.2078,2640.7,2640.5,3.20779984]
[1750113197147,3.2078,2641.0,2640.7,3.20779984]
[1750113197352,1.12436702,2640.9,2640.7,3.20779984]
[1750113197559,3.96481,2641.0,2640.7,3.20779984]
[1750113197747,1.12453463,2640.9,2640.8,3.96484984]
[1750113198348,3.2078,2641.0,2640.8,3.20779984]
[1750113198546,3.2078,2641.0,2640.8,0.75704]
[1750113198756,3.2078,2641.0,2640.9,0.75702]
[1750113199255,0.75707,2640.8,2640.7,8.609]
[1750113199650,3.2078,2641.0,2640.7,11.81679984]
[1750113199956,3.21348182,2641.3,2641.1,0.75695]
[1750113200147,3.21348182,2641.3,2640.7,10.50164]
[1750113200347,0.75694,2641.2,2641.1,0.75696]
[1750113200548,3.21348182,2641.3,2641.2,3.96473984]
[1750113201246,0.75675,2641.9,2641.3,3.20779984]
[1750113201451,3.2078,2642.5,2641.8,3.20779984]
[1750113201654,43.17189511,2642.4,2641.8,15.02459984]
[1750113201859,3.8048,2643.2,2642.4,5.09924984]
[1750113202050,3.8048,2643.2,2642.7,7.17209984]
[1750113202051,0.75643,2643.0,2642.7,7.17209984]
[1750113202247,40.8,2643.0,2642.8,0.75647]
[1750113202552,40.8,2643.0,2642.7,6.41559984]
[1750113202553,0.00568182,2643.1,2643.0,0.75642]
[1750113202753,3.2078,2643.5,2643.4,0.75631]
[1750113202961,3.2078,2643.5,2643.3,11.81679984]
[1750113203152,3.2078,2643.5,2643.4,0.75631]
[1750113203546,3.2078,2643.5,2643.4,3.96410984]
[1750113204244,0.00568182,2643.7,2643.0,3.2078]
[1750113204445,0.75628,2643.5,2643.4,8.606]
[1750113204650,0.75628,2643.5,2643.3,8.606]
[1750113204851,0.75629,2643.5,2643.3,8.606]
[1750113205256,40.8,2643.6,2642.9,46.8138]
[1750113205459,0.7563,2643.5,2643.3,8.606]
[1750113205653,0.75631,2643.4,2643.3,8.606]
[1750113206153,44.0078,2643.6,2643.3,8.606]
[1750113206553,0.75631,2643.4,2643.3,8.606]
[1750113206755,44.0078,2643.6,2642.9,46.8138]
[1750113206953,3.2078,2643.3,2642.9,43.606]
[1750113207146,0.75642,2643.0,2642.9,43.606]
[1750113207551,0.75642,2643.1,2642.9,43.606]
[1750113207747,3.2078,2643.3,2642.9,44.8538]
[1750113207957,0.75642,2643.0,2642.9,43.606]
[1750113208558,3.96422,2643.0,2642.9,43.606]
[1750113211765,3.2078,2643.0,2642.9,47.57024984]
[1750113211963,3.2078,2643.0,2642.9,48.92374984]
[1750113212164,3.96422,2643.0,2642.9,48.92374984]
[1750113212565,3.96422,2643.0,2642.9,76.12274984]
[1750113212766,3.2078,2643.0,2642.9,76.12274984]
[1750113214159,44.0078,2643.6,2642.9,78.57409984]
[1750113214367,0.75631,2643.4,2643.3,3.20779984]
[1750113214768,0.75634,2643.3,2643.2,1.3217]
[1750113215260,0.75634,2643.3,2643.2,4.52949984]
[1750113216567,0.75634,2643.3,2643.2,40.94385984]
[1750113218367,0.75642,2643.0,2642.9,47.63762406]
[1750113218567,0.75642,2643.0,2642.9,80.02482406]
[1750113218768,0.75642,2643.0,2642.9,82.4761739]
[1750113218962,0.75642,2643.0,2642.9,46.8811739]
[1750113219158,0.75642,2643.0,2642.9,82.4601739]
[1750113219363,0.75642,2643.0,2642.9,83.7427739]
[1750113219568,0.75642,2643.0,2642.9,48.1637739]
[1750113219764,0.75639,2643.2,2643.1,0.75636]
[1750113220068,0.75639,2643.2,2643.1,3.96415984]
[1750113220269,0.75639,2643.2,2643.1,3.20779984]
[1750113221066,0.75642,2643.0,2642.9,80.52497406]
[1750113221569,0.75642,2643.0,2642.9,84.4892039]
[1750113221769,0.75642,2643.0,2642.9,84.4892239]
[1750113221963,0.75642,2643.0,2642.9,83.7327739]
[1750113222357,0.75642,2643.0,2642.5,0.00568182]
[1750113222358,0.75654,2642.7,2642.5,0.00568182]
[1750113222564,0.75645,2642.9,2642.8,0.75646]
[1750113222765,0.75644,2643.1,2643.0,0.7564]
[1750113222959,0.75638,2643.2,2643.1,0.75635]
[1750113223160,0.75642,2643.0,2642.9,0.06737406]
[1750113224163,0.75642,2643.0,2642.9,0.82382406]
[1750113224359,0.75642,2643.0,2642.9,0.06737406]
[1750113225166,3.96422,2643.0,2642.9,0.06737406]
[1750113228568,3.96422,2643.0,2642.5,8.29468182]
[1750113228569,0.75654,2642.6,2642.5,8.29468182]
[1750113228764,0.75654,2642.6,2642.5,0.00568182]
[1750113229670,0.75662,2642.3,2642.2,9.564]
[1750113230071,0.75662,2642.3,2642.2,12.77179984]
[1750113230275,0.7566,2642.5,2642.4,0.75656]
[1750113230568,0.7566,2642.5,2642.4,3.96435984]
[1750113230766,1.85376291,2642.5,2642.4,3.96435984]
[1750113232676,0.75655,2642.6,2642.5,0.75657]
[1750113232971,1.85374785,2642.6,2642.5,5.24036984]
[1750113233171,1.85374785,2642.6,2642.5,1.276]
[1750113233771,1.85374785,2642.6,2642.5,2.03256]
[1750113233972,0.75659,2642.4,2642.3,0.6632]
[1750113234270,0.75659,2642.4,2642.3,4.48379984]
[1750113234468,0.75662,2642.3,2642.2,8.29568182]
[1750113234663,0.75662,2642.3,2642.2,11.50348166]
[1750113234869,0.75662,2642.3,2642.2,12.77948166]
[1750113235069,0.75662,2642.3,2642.2,13.53613166]
[1750113235273,0.75662,2642.3,2642.2,12.77948166]
[1750113235574,0.75662,2642.3,2642.2,4.48948166]
[1750113238568,0.75662,2642.3,2642.2,0.00568182]
[1750113238980,1.85458895,2642.3,2642.2,0.00568182]
[1750113239275,0.75679,2641.7,2641.6,27.14281]
[1750113239480,0.75679,2641.7,2641.6,36.38991]
[1750113239776,0.75679,2641.7,2641.6,39.59070984]
[1750113240773,0.00568182,2641.9,2641.6,40.72594984]
[1750113240975,0.75664,2642.3,2642.2,0.7566]
[1750113241173,0.75673,2642.0,2641.8,3.2078]
[1750113241378,0.75673,2642.0,2641.9,1.2661]
[1750113241574,0.75673,2642.0,2641.9,4.47389984]
[1750113241973,0.75673,2642.0,2641.9,5.23063984]
[1750113242874,0.75673,2642.0,2641.9,4.47389984]
[1750113243478,0.75673,2642.0,2641.8,7.99]
[1750113243479,0.75674,2641.9,2641.8,7.99]
[1750113243983,0.75674,2641.9,2641.8,11.19779984]
[1750113244381,0.75674,2641.9,2641.8,11.95456984]
[1750113244880,0.75674,2641.9,2641.8,13.23716984]
[1750113245982,0.00568182,2642.2,2641.8,12.48039984]
[1750113246182,0.76233182,2642.2,2642.1,3.96447984]
[1750113246680,0.76233182,2642.2,2642.1,3.20779984]
[1750113249377,0.75668,2642.1,2642.0,1.9178]
[1750113249778,0.75668,2642.1,2642.0,5.12559984]
[1750113250181,0.75671,2642.0,2641.9,0.06737406]
[1750113250375,0.75671,2642.0,2641.9,0.82411406]
[1750113250578,0.75671,2642.0,2641.9,1.34357406]
[1750113251686,0.75671,2642.0,2641.9,5.3081139]
[1750113251979,0.75671,2642.0,2641.9,5.3080939]
[1750113252886,0.7567,2642.1,2642.0,0.75668]
[1750113253084,0.7567,2642.1,2642.0,2.10258]
[1750113253276,0.7567,2642.1,2642.0,5.31037984]
[1750113253673,0.76235182,2642.2,2642.1,0.75668]
[1750113253872,0.76235182,2642.2,2642.1,4.48359984]
[1750113255081,0.75668,2642.1,2642.0,7.99]
[1750113255483,0.75671,2642.0,2641.9,0.06737406]
[1750113255882,3.96451,2642.0,2641.9,0.06737406]
[1750113257287,1.89188,2641.9,2641.4,0.00568182]
[1750113257494,0.75685,2641.5,2641.4,0.00568182]
[1750113257785,0.75685,2641.5,2641.4,1.30888182]
[1750113257991,1.89229,2641.3,2640.9,7.702]
[1750113258188,3.2078,2641.2,2641.1,3.20779984]
[1750113258382,0.75693,2641.3,2641.2,3.96469984]
[1750113258789,0.75693,2641.3,2641.2,3.20779984]
[1750113259190,0.75693,2641.3,2641.2,5.17429984]
[1750113259792,0.75693,2641.3,2641.2,4.51099984]
[1750113259993,0.75693,2641.3,2641.2,1.3032]
[1750113260182,0.75694,2641.2,2641.1,0.6658]
[1750113260386,0.75697,2641.1,2641.0,0.00568182]
[1750113260790,0.75697,2641.1,2641.0,3.21348166]
[1750113260992,0.75697,2641.1,2641.0,0.00568182]
[1750113261181,0.75697,2641.1,2640.2,7.26031685]
[1750113261182,1.89258,2640.9,2640.2,3.2078]
[1750113261386,1.89251,2641.0,2640.2,3.2078]
[1750113261387,0.75714,2640.5,2640.4,3.20779984]
[1750113262086,0.625,2641.1,2640.7,0.75708]
[1750113262285,0.625,2641.1,2640.4,5.10069984]
[1750113262286,0.75702,2640.9,2640.8,3.20779984]
[1750113262590,0.75708,2640.7,2640.6,0.00568182]
[1750113262787,0.00568182,2641.2,2640.6,6.42128166]
[1750113262788,1.89809182,2641.2,2640.6,6.42128166]
[1750113262991,0.75705,2640.8,2640.7,2.07336]
[1750113263390,0.75704,2640.9,2640.8,0.75703]
[1750113263589,0.75704,2640.9,2640.8,2.63333]
[1750113263785,0.00568182,2641.2,2640.8,10.08409984]
[1750113263985,0.76262182,2641.2,2641.1,3.20779984]
[1750113264594,0.757,2641.0,2640.9,7.703]
[1750113264788,0.757,2641.0,2640.9,8.937]
[1750113264989,0.757,2641.0,2640.9,12.14479984]
[1750113266794,0.00568182,2641.2,2640.9,12.14479984]
[1750113266994,0.76265182,2641.2,2641.1,3.96476984]
[1750113267299,0.76265182,2641.2,2641.1,3.20779984]
[1750113267697,0.76265182,2641.2,2641.1,5.23816984]
[1750113267995,0.76265182,2641.2,2641.1,4.48119984]
[1750113268192,0.76265182,2641.2,2641.1,5.23816984]
[1750113268395,0.00568182,2641.2,2641.1,5.23816984]
[1750113268601,0.76262182,2641.2,2641.1,4.48119984]
[1750113268899,0.76262182,2641.2,2641.1,5.23816984]
[1750113269501,0.76262182,2641.2,2641.1,3.20779984]
[1750113269697,0.76262182,2641.2,2641.1,3.96476984]
[1750113269895,0.76262182,2641.2,2641.1,3.20779984]
[1750113270498,0.76262182,2641.2,2641.1,5.23556984]
[1750113270900,0.76262182,2641.2,2641.1,4.47859984]
[1750113271097,0.76262182,2641.2,2641.1,5.23556984]
[1750113271297,0.00568182,2641.2,2641.1,5.23556984]
[1750113273497,0.00568182,2641.2,2641.0,7.704]
[1750113273498,0.75699,2641.0,2640.9,3.2078]
[1750113273698,0.75697,2641.1,2641.0,3.20779984]
[1750113274200,0.75705,2640.8,2640.7,10.3148]
[1750113274604,0.75702,2641.0,2640.8,0.75703]
[1750113274803,0.75702,2641.0,2640.9,1.2951]
[1750113275003,0.75702,2641.0,2640.9,4.50289984]
[1750113275403,41.55702,2641.0,2640.9,4.50289984]
[1750113276704,52.34125134,2641.0,2639.1,6.97366541]
[1750113277010,0.7574,2639.6,2639.5,1.2613]
[1750113277206,0.75748,2639.3,2639.2,1.2955]
[1750113277510,3.2078,2639.6,2639.1,0.75754]
[1750113277713,0.75748,2639.3,2639.2,1.2613]
[1750113277902,0.75747,2639.4,2639.2,1.2613]
[1750113278210,0.75744,2639.5,2639.2,2.01881]
[1750113278508,0.75745,2639.4,2639.3,1.2613]
[1750113278709,0.75744,2639.5,2639.3,1.2613]
[1750113279010,0.75745,2639.4,2639.3,1.2613]
[1750113279204,0.75744,2639.5,2639.3,1.2613]
[1750113279607,3.21348182,2639.6,2639.5,0.75743]
[1750113279804,0.00568182,2639.6,2639.5,0.75743]
[1750113280002,0.00568182,2639.6,2639.5,2.03723]
[1750113280308,0.00568182,2639.6,2639.5,1.2798]
[1750113280510,0.00568182,2639.6,2639.5,2.03723]
[1750113281209,0.00568182,2639.6,2639.5,9.74323]
[1750113281404,0.00568182,2639.6,2639.5,8.9858]
[1750113281807,0.76308182,2639.6,2639.5,8.9858]
[1750113282312,0.76308182,2639.6,2639.5,7.706]
[1750113282812,5.60023309,2639.6,2639.5,7.706]
[1750113283214,0.75747,2639.4,2638.9,7.707]
[1750113283411,0.75747,2639.4,2639.2,0.7575]
[1750113283611,0.75747,2639.4,2639.3,1.2713]
[1750113283816,0.75744,2639.5,2639.3,1.2713]
[1750113284006,0.00568182,2639.6,2638.5,3.2078]
[1750113284007,7.71268182,2639.6,2638.5,3.2078]
[1750113284309,0.75756,2639.1,2638.9,0.75758]
[1750113284513,0.75754,2639.2,2639.0,2.02886]
[1750113284704,3.2078,2639.4,2639.0,1.2713]
[1750113284910,0.75753,2639.2,2639.0,2.02885]
[1750113285104,0.75754,2639.1,2639.0,1.2713]
[1750113285409,3.96534,2639.1,2639.0,1.2713]
[1750113285615,0.75763,2638.8,2638.7,7.707]
[1750113285811,3.2078,2639.1,2638.7,9.0723]
[1750113286116,3.96535,2639.1,2638.9,0.75758]
[1750113286306,3.96535,2639.1,2639.0,1.3653]
[1750113286510,3.2078,2639.1,2639.0,2.12287]
[1750113286712,3.96534,2639.1,2639.0,1.3653]
[1750113287014,0.75749,2639.3,2639.0,1.3653]
[1750113287215,8.80242127,2639.4,2639.0,1.3653]
[1750113287417,0.75749,2639.3,2639.1,0.75752]
[1750113287616,8.04495127,2639.4,2639.3,0.75748]
[1750113287808,8.04495127,2639.4,2639.2,1.3653]
[1750113288014,0.75748,2639.3,2639.2,1.3653]
[1750113288214,8.80243127,2639.4,2639.2,2.12281]
[1750113288517,0.62758182,2639.6,2639.5,0.75743]
[1750113288518,0.00568182,2639.6,2639.5,0.75743]
[1750113288715,1.89284,2640.6,2640.2,0.75722]
[1750113288716,3.2078,2640.3,2640.2,0.75722]
[1750113288915,3.2078,2640.3,2640.2,8.57122]
[1750113289725,3.2078,2640.3,2640.2,7.814]
[1750113289920,3.2078,2640.3,2640.2,8.57122]
[1750113292523,0.00568182,2640.5,2640.4,0.75717]
[1750113295527,3.2078,2641.2,2641.1,0.75695]
[1750113295831,3.2078,2641.2,2641.1,0.75697]
[1750113296332,3.2078,2641.2,2641.1,2.07947]
[1750113296630,0.00568182,2641.4,2641.3,0.75691]
[1750113297134,3.2078,2641.9,2641.8,0.75677]
[1750113297435,3.2078,2641.9,2641.5,8.56884]
[1750113297636,0.75681,2641.7,2641.5,7.812]
[1750113297834,8.58505663,2642.2,2641.5,9.159]
[1750113298034,0.75676,2641.9,2641.8,0.75677]
[1750113298539,0.75682,2641.6,2641.5,9.159]
[1750113300940,0.75685,2641.5,2641.4,3.2078]
[1750113301238,0.75697,2641.1,2641.0,7.811]
[1750113302144,0.757,2641.0,2640.9,0.00568182]
[1750113302844,3.9648,2641.0,2640.9,0.00568182]
[1750113303040,5.2935,2641.0,2640.9,0.00568182]
[1750113304635,0.75711,2640.6,2640.5,8.56814]
[1750113305140,1.38245,2640.9,2640.8,0.75705]
[1750113305339,0.75707,2640.8,2640.7,0.75707]
[1750113305937,0.75708,2640.7,2640.6,0.75709]
[1750113306141,0.75707,2640.8,2640.7,0.75707]
[1750113306443,1.89257,2640.9,2640.5,9.91891182]
[1750113306644,0.75707,2640.8,2640.6,0.75709]
[1750113307144,0.75708,2640.7,2640.6,0.75709]
[1750113307346,0.75707,2640.8,2640.7,0.75708]
[1750113307545,5.1001,2641.3,2640.8,0.75703]
[1750113307735,3.2078,2641.3,2640.9,1.2695]
[1750113308140,0.75698,2641.1,2641.0,0.75698]
[1750113308334,3.2078,2641.3,2640.9,2.0265]
[1750113308335,0.757,2641.0,2640.9,2.0265]
[1750113308746,0.75699,2641.1,2641.0,0.75698]
[1750113308941,0.75696,2641.2,2641.1,0.75696]
[1750113309445,0.75708,2640.7,2640.6,0.6527]
[1750113310039,0.75708,2640.7,2640.6,2.74341]
[1750113310241,1.89251,2641.0,2640.6,1.9863]
[1750113310541,0.75711,2640.6,2640.5,11.02448182]
[1750113311546,5.10031,2641.0,2640.5,12.35808182]
[1750113311738,1.89235,2641.2,2640.8,3.2078]
[1750113311940,0.75695,2641.2,2641.1,0.75696]
[1750113313042,0.75695,2641.2,2641.1,0.75695]
[1750113313249,3.96472,2641.3,2641.2,0.75694]
[1750113314143,0.75694,2641.2,2641.1,1.99125]
[1750113314350,0.75694,2641.2,2641.1,1.2343]
[1750113314750,0.75694,2641.2,2641.1,1.99127]
[1750113315048,0.75692,2641.3,2641.2,0.75694]
[1750113315244,1.89208,2641.6,2641.2,0.75693]
[1750113315446,0.75688,2641.4,2641.3,2.06581]
[1750113315652,0.75688,2641.4,2641.3,1.3089]
[1750113316151,0.75687,2641.5,2641.4,0.75688]
[1750113316451,1.89196,2641.8,2641.3,2.06579]
[1750113316452,0.75688,2641.4,2641.3,2.06579]
[1750113316644,0.75687,2641.5,2641.3,2.06579]
[1750113316845,0.75688,2641.4,2641.3,2.06579]
[1750113317241,0.75688,2641.4,2641.3,1.3089]
[1750113317453,0.75688,2641.4,2641.3,2.06581]
[1750113317653,0.75688,2641.4,2641.3,1.3089]
[1750113319060,0.75697,2641.1,2641.0,7.811]
[1750113319250,1.89242,2641.1,2640.7,0.75708]
[1750113319445,0.75708,2640.7,2640.6,8.2781]
[1750113319956,0.75702,2641.0,2640.9,0.75701]
[1750113320161,0.75702,2641.0,2640.9,3.96481]
[1750113320548,0.75689,2641.4,2641.3,0.75689]
[1750113320951,3.833,2641.8,2641.3,3.2078]
[1750113321151,0.75679,2641.7,2641.6,3.2078]
[1750113321353,0.75679,2641.7,2641.6,10.7288]
[1750113321554,1.89208,2641.6,2641.4,7.521]
[1750113322064,0.75685,2641.5,2641.4,7.521]
[1750113322354,0.75685,2641.5,2641.1,1.39444]
[1750113322355,0.75694,2641.2,2641.1,26.2765]
[1750113322559,0.75693,2641.3,2641.1,33.7975]
[1750113322758,0.75693,2641.3,2641.2,0.75692]
[1750113323361,0.75694,2641.2,2641.1,34.55445]
[1750113323661,0.75694,2641.2,2641.1,34.55446]
[1750113324161,0.75686,2641.5,2641.4,0.75687]
[1750113324358,2.54275,2641.8,2641.1,33.7975]
[1750113324557,2.54275,2641.8,2641.3,0.75689]
[1750113324754,0.75688,2641.5,2641.1,33.7975]
[1750113325158,0.75688,2641.5,2641.4,0.75688]
[1750113325660,0.75683,2641.6,2641.5,0.75684]
[1750113325961,0.75686,2641.5,2641.4,0.75687]
[1750113326555,0.75684,2641.6,2641.5,0.75685]
[1750113327665,0.75684,2641.6,2641.5,8.27785]
[1750113328166,0.75684,2641.6,2641.5,7.521]
[1750113328370,0.75684,2641.6,2641.5,8.27785]
[1750113329362,0.7568,2641.7,2641.3,0.75691]
[1750113329561,0.75687,2641.5,2641.1,2.5299]
[1750113329766,0.75687,2641.5,2641.4,0.75686]
[1750113330372,1.892,2641.7,2641.4,0.75688]
[1750113330772,0.75685,2641.5,2641.4,0.75688]
[1750113331463,0.75689,2641.4,2641.3,0.75688]
[1750113331661,0.75686,2641.6,2641.5,0.75684]
[1750113331873,1.89192,2641.8,2641.1,1.39445]
[1750113331874,0.75694,2641.2,2641.1,1.39445]
[1750113332370,0.75694,2641.2,2641.1,0.6375]
[1750113332672,0.75697,2641.1,2641.0,0.6362]
[1750113332872,4.83235033,2641.5,2641.1,0.75696]
[1750113332873,0.75695,2641.2,2641.1,0.75696]
[1750113333165,0.75697,2641.1,2641.0,0.6362]
[1750113333764,0.75705,2640.8,2640.7,3.2078]
[1750113334169,0.75699,2641.1,2640.9,0.757]
[1750113334370,0.75694,2641.2,2641.0,0.75697]
[1750113334568,0.75696,2641.2,2641.0,0.75697]
[1750113334775,3.2078,2641.3,2640.9,1.89257]
[1750113335066,0.75691,2641.3,2641.2,0.75692]
[1750113335267,0.75689,2641.4,2641.3,0.75689]
[1750113335468,0.75689,2641.4,2641.3,0.75691]
[1750113335874,0.75691,2641.3,2641.2,0.75692]
[1750113336172,0.7569,2641.4,2641.2,0.75692]
[1750113336368,0.75691,2641.3,2641.2,0.75692]
[1750113336575,0.75694,2641.2,2641.1,1.39834]
[1750113336774,0.75694,2641.2,2641.1,0.6414]
[1750113337180,0.757,2641.0,2640.9,2.12542]
[1750113337774,0.757,2641.0,2640.9,1.3684]
[1750113338079,0.757,2641.0,2640.9,2.12542]
[1750113338779,0.75699,2641.1,2641.0,0.75699]
[1750113339874,0.75692,2641.3,2641.2,0.75692]
[1750113340080,1.89222,2641.4,2640.9,1.3684]
[1750113340377,0.75698,2641.1,2641.0,8.27797]
[1750113340776,0.75698,2641.1,2641.0,7.521]
[1750113340980,0.75698,2641.1,2641.0,8.278]
[1750113341783,1.89261,2640.9,2640.5,0.00568182]
[1750113341985,1.89293,2640.4,2639.5,0.75741]
[1750113342169,3.2078,2639.8,2639.6,7.521]
[1750113342373,3.96515,2639.8,2639.6,7.521]
[1750113342674,3.96515,2639.8,2639.6,12.0453]
[1750113342973,3.96514,2639.8,2639.6,12.0453]
[1750113343370,3.2078,2639.8,2639.6,12.0453]
[1750113343680,3.96517,2639.8,2639.6,12.0453]
[1750113344173,0.75737,2639.7,2639.6,12.0453]
[1750113344381,3.96516,2639.8,2639.6,12.80269]
[1750113344769,3.96516,2639.8,2639.7,1.2815]
[1750113346077,3.2078,2639.8,2639.7,1.2815]
[1750113346380,0.00568182,2640.0,2639.7,4.4893]
[1750113346574,0.00568182,2640.0,2639.7,7.6971]
[1750113346776,0.00568182,2640.0,2639.9,0.75731]
[1750113347177,3.2078,2640.6,2639.9,8.8737]
[1750113347376,3.2078,2640.6,2640.0,12.6414]
[1750113347377,0.75718,2640.4,2640.0,12.6414]
[1750113347580,0.75716,2640.5,2640.3,0.75719]